fUSD/lending_fUSD_20241021
["ID","MTS","AMOUNT","RATE_DAILY","PERIOD"]
[340564173,1729486244033,-150.0,0.00014361,2]
[340564175,1729486244042,-150.0,0.00014364,2]
[340564177,1729486244052,-150.0,0.00014369,2]
[340564178,1729486244062,-150.0,0.00014371,2]
[340564179,1729486244072,-1389.92651745,0.00014374,2]
[340564180,1729486244081,-150.0,0.00014377,2]
[340564181,1729486244091,-150.0,0.00014379,2]
[340564182,1729486244101,-150.0,0.0001438,2]
[340564183,1729486244110,-150.0,0.00014381,2]
[340564184,1729486244120,-150.0,0.00014389,2]
[340564185,1729486244129,-150.0,0.0001439,2]
[340564186,1729486244140,-150.0,0.00014391,2]
[340564187,1729486244149,-150.0,0.00014393,2]
[340564188,1729486244158,-150.0,0.00014393,2]
[340564189,1729486244168,-150.0,0.00014399,2]
[340564190,1729486244177,-150.0,0.00014399,2]
[340564191,1729486244187,-3680.26266551,0.000144,2]
[340564192,1729486244197,-150.0,0.00014402,2]
[340564193,1729486244206,-150.0,0.00014411,2]
[340564194,1729486244216,-150.0,0.00014416,2]
[340564195,1729486244225,-150.0,0.00014417,2]
[340564196,1729486244235,-150.0,0.00014424,2]
[340564197,1729486244245,-150.0,0.00014425,2]
[340564198,1729486244255,-150.0,0.00014429,2]
[340564199,1729486244264,-150.0,0.0001443,2]
[340564200,1729486244274,-150.0,0.00014433,2]
[340564201,1729486244283,-150.0,0.00014447,2]
[340564202,1729486244294,-150.0,0.00014448,2]
[340564203,1729486244305,-150.0,0.00014451,2]
[340564204,1729486244315,-150.0,0.00014452,2]
[340564205,1729486244326,-1500.0,0.00014454,2]
[340564206,1729486244335,-150.0,0.00014455,2]
[340564207,1729486244345,-150.0,0.00014458,2]
[340564208,1729486244354,-150.0,0.00014461,2]
[340564209,1729486244363,-150.0,0.00014464,2]
[340564210,1729486244373,-150.0,0.00014465,2]
[340564211,1729486244382,-150.0,0.00014466,2]
[340564212,1729486244391,-500.0,0.00014473,2]
[340564213,1729486244400,-5713.8300961,0.00014489,2]
[340564214,1729486244409,-64920.1141504,0.00014489,2]
[340564215,1729486244419,-15183.8214374,0.00014489,2]
[340564216,1729486244429,-167.0,0.00014499,2]
[340564217,1729486244439,-293.097149,0.00014499,2]
[340564218,1729486244448,-87779.21124561,0.000145,3]
[340564219,1729486244458,-2422.48,0.000145,2]
[340564220,1729486244468,-150.99,0.000145,2]
[340564221,1729486244478,-250.0,0.00014698,2]
[340564222,1729486244488,-155.73,0.00014698,2]
[340564223,1729486244499,-400.0,0.00015,3]
[340564224,1729486244510,-821.0,0.00015,3]
[340564225,1729486244519,-499.99,0.00015,2]
[340564226,1729486244532,-600.0,0.00015011,2]
[340564227,1729486244543,-3466.0,0.000153,3]
[340564228,1729486244554,-3680.26266549,0.00015559,2]
[340564229,1729486244564,-153.53,0.00016438,2]
[340564230,1729486244575,-940.84,0.00016466,2]
[340564231,1729486244584,-600.0,0.00016679,2]
[340564232,1729486244594,-3680.26266549,0.00016718,2]
[340564233,1729486244603,-1469.4149,0.00016992,2]
[340564234,1729486244615,-400.0,0.00017071,2]
[340564235,1729486244625,-260.15,0.00017108,2]
[340564236,1729486244635,-2519.15,0.00017155,2]
[340564237,1729486244645,-156.0,0.00017748,2]
[340564238,1729486244656,-165.09,0.00017778,2]
[340564239,1729486244666,-3680.26266549,0.00017877,2]
[340564240,1729486244676,-528.323,0.00017886,2]
[340564241,1729486244686,-560.0,0.00017886,2]
[340564242,1729486244696,-1245.0,0.00017886,2]
[340564243,1729486244706,-812.0,0.00017886,2]
[340564244,1729486244717,-560.322,0.00017886,2]
[340564245,1729486244727,-936.0,0.00017886,2]
[340564246,1729486244737,-1910.0,0.00017886,2]
[340564247,1729486244747,-3359.0,0.00017886,2]
[340564248,1729486244758,-810.0,0.00017886,2]
[340564249,1729486244769,-13541.0,0.00017886,2]
[340564250,1729486244779,-152.808,0.00017886,2]
[340564251,1729486244789,-150.0,0.00017886,2]
[340564252,1729486244799,-1151.0,0.00017886,2]
[340564253,1729486244808,-5889.0,0.00017886,2]
[340564254,1729486244819,-150.222,0.00017886,2]
[340564255,1729486244828,-2751.0,0.0001789,2]
[340564256,1729486244979,-153.0,0.0001796,2]
[340564257,1729486245021,-170.39,0.00017982,2]
[340564258,1729486245033,-200.0,0.00018042,2]
[340564259,1729486245044,-703.0,0.00018305,2]
[340564260,1729486245054,-500.0,0.00018308,2]
[340564261,1729486245065,-269.63,0.0001834,2]
[340564262,1729486245081,-250.0,0.0001834,2]
[340564263,1729486245092,-600.0,0.00018347,2]
[340564264,1729486245104,-1500.0,0.00018383,2]
[340564265,1729486245115,-151.0,0.00018414,2]
[340564266,1729486245125,-23900.0,0.00018414,2]
[340564267,1729486245134,-3321.87,0.00018435,2]
[340564268,1729486245144,-940.84,0.00018729,2]
[340564269,1729486245154,-167.0,0.00018884,2]
[340564270,1729486245165,-3680.26266549,0.00019036,2]
[340564271,1729486245177,-400.0,0.00019205,2]
[340564272,1729486245188,-260.15,0.00019247,2]
[340564273,1729486245198,-424.52,0.00019699,2]
[340564274,1729486245210,-424.52,0.00019699,2]
[340564275,1729486245222,-380.7,0.00019699,2]
[340564276,1729486245234,-255.0,0.00019726,2]
[340564277,1729486245246,-722.0,0.000199,2]
[340564278,1729486245258,-1000.0,0.000199,2]
[340564279,1729486245268,-456.0,0.000199,2]
[340564280,1729486245278,-158.95,0.00019961,2]
[340564281,1729486245287,-150.0,0.0002,2]
[340564282,1729486245298,-600.0,0.00020014,2]
[340564283,1729486245308,-3680.26266549,0.00020195,2]
[340564284,1729486245318,-153.772744,0.00020255,2]
[340564285,1729486245331,-150.0,0.00020257,2]
[340564286,1729486245340,-151.208,0.00020257,2]
[340564287,1729486245350,-168.843,0.00020257,2]
[340564288,1729486245360,-171.182,0.00020257,2]
[340564289,1729486245370,-192.861,0.00020257,2]
[340564290,1729486245380,-152.364,0.00020257,2]
[340564291,1729486245390,-180.0,0.00020313,2]
[340564292,1729486245401,-13329.9626958,0.00020876,3]
[340564293,1729486245411,-450.0,0.00020886,2]
[340564294,1729486245421,-560.0,0.00020886,2]
[340564295,1729486245430,-1245.0,0.00020886,2]
[340564296,1729486245440,-812.0,0.00020886,2]
[340564297,1729486245450,-555.0,0.00020886,2]
[340564298,1729486245460,-936.0,0.00020886,2]
[340564299,1729486245469,-1910.0,0.00020886,2]
[340564300,1729486245479,-3359.0,0.00020886,2]
[340564301,1729486245489,-809.0,0.00020886,2]
[340564302,1729486245498,-13541.0,0.00020886,2]
[340564303,1729486245508,-150.0,0.00020886,2]
[340564304,1729486245517,-150.0,0.00020886,2]
[340564305,1729486245527,-1151.0,0.00020886,2]
[340564306,1729486245538,-5889.0,0.00020886,2]
[340564307,1729486245548,-150.0,0.00020886,2]
[340564308,1729486245558,-940.84,0.00020993,2]
[340564309,1729486245567,-1850.0,0.00021045,2]
[340564310,1729486245581,-6664.98134792,0.00021057,3]
[340564311,1729486245591,-500.0,0.00021067,2]
[340564312,1729486245600,-400.0,0.00021339,2]
[340564313,1729486245611,-3680.26266549,0.00021354,2]
[340564314,1729486245621,-260.15,0.00021385,2]
[340564315,1729486245631,-161.75488736,0.0002145,2]
[340564316,1729486245640,-151.0,0.0002145,2]
[340564317,1729486245649,-1010.0,0.000215,2]
[340564318,1729486245658,-313.0,0.00021675,2]
[340564319,1729486245667,-1009.0,0.000218,2]
[340564320,1729486245676,-6664.98134792,0.00021899,3]
[340564321,1729486245685,-297.0427076,0.00021908,2]
[340564322,1729486245694,-166624.533698,0.00021909,3]
[340564323,1729486245703,-2500.0,0.00021917,2]
[340564324,1729486245713,-166.08,0.00021918,2]
[340564325,1729486245722,-330.0,0.00021918,2]
[340564326,1729486245731,-159.966773,0.00021919,7]
[340564327,1729486245739,-216.713165,0.00021919,7]
[340564328,1729486245748,-216.713165,0.00021919,7]
[340564329,1729486245757,-158.43663,0.00021919,7]
[340564330,1729486245767,-272.110804,0.00021919,7]
[340564331,1729486245776,-272.110804,0.00021919,7]
[340564332,1729486245785,-382.37230094,0.00022,2]
[340564333,1729486245794,-1198.01,0.00022,2]
[340564334,1729486245802,-156.0,0.00022185,2]
[340564335,1729486245811,-165.09,0.00022223,2]
[340564336,1729486245821,-367.25087547,0.00022437,2]
[340564337,1729486245830,-6664.98134792,0.00022503,4]
[340564338,1729486245839,-151.0,0.00022513,7]
[340564339,1729486245849,-151.0,0.00022513,7]
[340564340,1729486245858,-151.0,0.00022513,7]
[340564341,1729486245867,-151.0,0.00022513,7]
[340564342,1729486245876,-151.462529,0.00022513,7]
[340564343,1729486245885,-152.942935,0.00022513,7]
[340564344,1729486245894,-161.145193,0.00022513,7]
[340564345,1729486245903,-3680.26266549,0.00022513,2]
[340564346,1729486245912,-595.64441,0.00022513,7]
[340564347,1729486245922,-247.871683,0.00022513,7]
[340564348,1729486245931,-247.871683,0.00022513,7]
[340564349,1729486245940,-2000.0,0.000229,8]
[340564350,1729486245949,-187.364497,0.00022961,2]
[340564351,1729486245958,-6664.98134792,0.00023004,4]
[340564352,1729486245968,-900.0,0.00023014,2]
[340564353,1729486245977,-424.52,0.00023014,2]
[340564354,1729486245986,-756.49,0.00023014,2]
[340564355,1729486245995,-424.52,0.00023014,2]
[340564356,1729486246004,-756.49,0.00023014,2]
[340564357,1729486246013,-424.52,0.00023014,2]
[340564358,1729486246022,-424.52,0.00023014,2]
[340564359,1729486246033,-756.49,0.00023014,2]
[340564360,1729486246042,-162.43,0.00023014,2]
[340564361,1729486246051,-756.49,0.00023014,2]
[340564362,1729486246061,-756.49,0.00023014,2]
[340564363,1729486246070,-756.49,0.00023014,2]
[340564364,1729486246079,-756.49,0.00023014,2]
[340564365,1729486246088,-151.0,0.00023014,7]
[340564366,1729486246098,-152.0,0.00023228,3]
[340564367,1729486246107,-6664.98134792,0.00023232,4]
[340564368,1729486246116,-151.0,0.00023242,7]
[340564369,1729486246125,-151.0,0.00023242,7]
[340564370,1729486246134,-595.64441,0.00023242,7]
[340564371,1729486246142,-595.64441,0.00023242,7]
[340564372,1729486246151,-247.871683,0.00023242,7]
[340564374,1729486246161,-247.871683,0.00023242,7]
[340564375,1729486246169,-247.871683,0.00023242,7]
[340564376,1729486246178,-247.871683,0.00023242,7]
[340564377,1729486246187,-216.713165,0.00023242,7]
[340564378,1729486246196,-216.713165,0.00023242,7]
[340564379,1729486246206,-272.110804,0.00023242,7]
[340564380,1729486246215,-272.110804,0.00023242,7]
[340564381,1729486246224,-151.0,0.00023252,7]
[340564382,1729486246233,-151.0,0.00023253,7]
[340564383,1729486246242,-151.0,0.00023253,7]
[340564384,1729486246251,-151.0,0.00023253,7]
[340564385,1729486246260,-151.0,0.00023253,7]
[340564386,1729486246269,-150.0,0.00023257,2]
[340564387,1729486246278,-150.0,0.00023257,2]
[340564388,1729486246287,-150.0,0.00023257,2]
[340564389,1729486246295,-940.84,0.00023257,2]
[340564390,1729486246305,-2500.0,0.00023287,7]
[340564391,1729486246313,-811.700719,0.000234,2]
[340564392,1729486246323,-400.0,0.00023473,2]
[340564393,1729486246333,-260.15,0.00023523,2]
[340564394,1729486246342,-596.0,0.00023604,2]
[340564395,1729486246352,-719.535,0.00023604,4]
[340564396,1729486246361,-3680.26266549,0.00023672,2]
[340564397,1729486246370,-152.0,0.00023782,4]
[340564398,1729486246379,-171.14373162,0.00023786,2]
[340564399,1729486246388,-151.0,0.000238,7]
[340564400,1729486246398,-151.0,0.000238,7]
[340564401,1729486246407,-4100.0,0.000238,8]
[340564402,1729486246416,-272.110804,0.000238,7]
[340564403,1729486246425,-272.110804,0.000238,7]
[340564404,1729486246434,-161.79593169,0.00023836,2]
[340564405,1729486246443,-232.928289,0.0002387,7]
[340564406,1729486246452,-595.64441,0.0002387,7]
[340564407,1729486246461,-595.64441,0.0002387,7]
[340564408,1729486246471,-247.871683,0.0002387,7]
[340564409,1729486246480,-247.871683,0.0002387,7]
[340564410,1729486246489,-216.713165,0.0002387,7]
[340564411,1729486246498,-216.713165,0.0002387,7]
[340564412,1729486246507,-272.110804,0.00023876,7]
[340564413,1729486246517,-272.110804,0.00023876,7]
[340564414,1729486246526,-49988.49082246,0.0002388,2]
[340564415,1729486246539,-595.64441,0.0002388,7]
[340564416,1729486246548,-595.64441,0.0002388,7]
[340564417,1729486246558,-247.871683,0.0002388,7]
[340564418,1729486246567,-247.871683,0.0002388,7]
[340564419,1729486246578,-216.713165,0.0002388,7]
[340564420,1729486246588,-216.713165,0.0002388,7]
[340564421,1729486246597,-450.0,0.00023886,2]
[340564422,1729486246607,-560.0,0.00023886,2]
[340564423,1729486246617,-1245.0,0.00023886,2]
[340564424,1729486246626,-812.0,0.00023886,2]
[340564425,1729486246636,-555.0,0.00023886,2]
[340564426,1729486246644,-936.0,0.00023886,2]
[340564427,1729486246653,-1910.0,0.00023886,2]
[340564428,1729486246662,-3359.0,0.00023886,2]
[340564429,1729486246673,-809.0,0.00023886,2]
[340564430,1729486246681,-13541.0,0.00023886,2]
[340564431,1729486246690,-150.0,0.00023886,2]
[340564433,1729486246699,-527.264,0.00023886,2]
[340564435,1729486246709,-5889.0,0.00023886,2]
[340564436,1729486246717,-202.11,0.00023886,7]
[340564438,1729486246726,-299.951513,0.00023886,7]
[340564440,1729486246736,-153.082964,0.00023886,7]
[340564442,1729486246745,-151.0,0.00023886,7]
[340564444,1729486246754,-151.0,0.00023886,7]
[340564446,1729486246763,-272.110804,0.00023886,7]
[340564447,1729486246772,-272.110804,0.00023886,7]
[340564449,1729486246781,-163.099122,0.000239,2]
[340564451,1729486246790,-6200.0,0.000239,8]
[340564453,1729486246799,-183.38995681,0.000239,2]
[340564455,1729486246808,-151.0,0.00023973,7]
[340564457,1729486246817,-178.239602,0.00023973,7]
[340564458,1729486246827,-595.64441,0.0002399,7]
[340564460,1729486246836,-595.64441,0.0002399,7]
[340564462,1729486246845,-247.871683,0.0002399,7]
[340564464,1729486246854,-247.871683,0.0002399,7]
[340564465,1729486246863,-216.713165,0.0002399,7]
[340564467,1729486246872,-216.713165,0.0002399,7]
[340564469,1729486246881,-272.110804,0.0002399,7]
[340564470,1729486246890,-272.110804,0.0002399,7]
[340564471,1729486246899,-400.0,0.00024,7]
[340564472,1729486246908,-400.0,0.00024,4]
[340564473,1729486246917,-709953.32425819,0.00024,5]
[340564474,1729486247041,-301.13,0.00024,5]
[340564475,1729486247106,-551.56572813,0.00024,5]
[340564482,1729487431598,-162.68,0.00010959,2]
[340564483,1729487431609,-151.94,0.00010959,2]
[340564484,1729487431619,-153.0,0.00010959,2]
[340564485,1729487431628,-2000.0,0.00011,2]
[340564486,1729487431637,-828.0,0.000155,3]
[340564487,1729487431647,-985.20493974,0.000165,2]
[340564488,1729487431658,-463.05,0.000165,2]
[340564489,1729487431670,-598.41965508,0.000165,2]
[340564490,1729487431681,-2636.2,0.000165,2]
[340564491,1729487431693,-6569.29509225,0.000165,2]
[340564492,1729487431704,-47180.83031293,0.000165,2]
[340564493,1729487431714,-183.0,0.00016799,2]
[340564494,1729487431724,-11521.0,0.00017,3]
[340564495,1729487431734,-11521.0,0.000174,5]
[340564496,1729487431744,-264.3888,0.00017786,2]
[340564497,1729487431753,-282.75,0.00018,2]
[340564498,1729487431762,-999.99,0.00018,2]
[340564499,1729487431771,-499.99,0.00018,2]
[340564500,1729487431784,-150.99,0.00018,2]
[340564501,1729487431793,-499.99,0.00018,2]
[340564502,1729487431802,-151.0,0.00018414,2]
[340564503,1729487431811,-1245.0,0.00018827,2]
[340564504,1729487431821,-812.0,0.00018827,2]
[340564505,1729487431830,-450.0,0.00018827,2]
[340564506,1729487431840,-560.0,0.00018827,2]
[340564507,1729487431849,-555.0,0.00018827,2]
[340564508,1729487431859,-936.0,0.00018827,2]
[340564509,1729487431868,-1910.0,0.00018827,2]
[340564510,1729487431877,-3359.0,0.00018827,2]
[340564511,1729487431891,-809.0,0.00018827,2]
[340564512,1729487431900,-13541.0,0.00018827,2]
[340564513,1729487431909,-3320.125,0.00018827,2]
[340564514,1729487431920,-150.0,0.00018827,2]
[340564515,1729487431930,-153.0,0.00018836,2]
[340564516,1729487431940,-825.5,0.00019981,2]
[340564517,1729487431949,-2504.0,0.00021214,2]
[340564518,1729487431958,-360.0,0.000214,2]
[340564519,1729487431969,-1000.0,0.000214,2]
[340564520,1729487431978,-227.0,0.000214,2]
[340564521,1729487431987,-151.0,0.0002145,2]
[340564522,1729487431997,-250.0,0.0002175,2]
[340564523,1729487432007,-250.0,0.0002176,2]
[340564524,1729487432016,-2751.0,0.00021764,2]
[340564525,1729487432025,-1000.0,0.00021806,2]
[340564526,1729487432036,-250.0,0.00021815,2]
[340564527,1729487432045,-200.0,0.00021821,2]
[340564528,1729487432054,-1245.0,0.00021827,2]
[340564529,1729487432064,-812.0,0.00021827,2]
[340564531,1729487432073,-450.0,0.00021827,2]
[340564532,1729487432083,-560.0,0.00021827,2]
[340564533,1729487432092,-555.0,0.00021827,2]
[340564534,1729487432101,-936.0,0.00021827,2]
[340564535,1729487432110,-1796.909,0.00021827,2]
[340564536,1729487432120,-3359.0,0.00021827,2]
[340564537,1729487432129,-9666.287,0.00021827,2]
[340564538,1729487432139,-150.0,0.00021827,2]
[340564539,1729487432148,-260.15,0.00021852,2]
[340564540,1729487432157,-6536.09988706,0.00021852,2]
[340564541,1729487432169,-7141.25819299,0.00021852,2]
[340564542,1729487432180,-614.15783881,0.00021852,2]
[340564543,1729487432191,-6576.90399969,0.00021852,2]
[340564544,1729487432207,-3031.58008145,0.00021852,2]
[340564545,1729487432217,-269.63,0.00021869,2]
[340564546,1729487432226,-151.0,0.00021908,2]
[340564547,1729487432236,-275.0,0.00021939,2]
[340564548,1729487432245,-165.09,0.00021942,2]
[340564549,1729487432255,-213.7,0.00022059,2]
[340564550,1729487432264,-825.5,0.00022245,2]
[340564551,1729487432273,-65.46621255,0.00022368,2]
[340564552,1729487432286,-114.81378745,0.00022368,2]
[340564553,1729487432295,-166.08,0.00022421,2]
[340564554,1729487432305,-284.03,0.00022439,2]
[340564555,1729487432314,-172.43,0.00022555,2]
[340564556,1729487432324,-178.341825,0.00022936,2]
[340564557,1729487432334,-200.0,0.00023,2]
[340564558,1729487432343,-500.0,0.00023252,2]
[340564559,1729487432353,-500.0,0.00023252,2]
[340564560,1729487432363,-500.0,0.00023252,2]
[340564561,1729487432372,-500.0,0.00023252,2]
[340564562,1729487432381,-500.0,0.00023252,2]
[340564563,1729487432391,-134.76839624,0.00023252,2]
[340564564,1729487432403,-365.23160376,0.00023252,2]
[340564565,1729487432412,-318.40839624,0.00023252,2]
[340564566,1729487437626,-299.8289,0.00018827,2]
[340564567,1729487437684,-357.95902549,0.00018827,2]
[340564568,1729487437743,-426.21207451,0.00018827,2]
[340564569,1729487437752,-1084.0,0.00021827,2]
[340564570,1729487437762,-181.59160376,0.00023252,2]
[340564571,1729487437771,-500.0,0.00023252,2]
[340564572,1729487437780,-500.0,0.00023252,2]
[340564573,1729487437796,-500.0,0.00023252,2]
[340564574,1729487437805,-500.0,0.00023252,2]
[340564575,1729487437814,-500.0,0.00023252,2]
[340564576,1729487437824,-150.64,0.00023252,2]
[340564577,1729487437833,-150.0,0.00023252,2]
[340564578,1729487437842,-150.0,0.00023252,2]
[340564579,1729487437852,-152.07,0.00023288,2]
[340564580,1729487437861,-152.93,0.00023288,2]
[340564581,1729487437870,-302.1,0.00023288,2]
[340564582,1729487437880,-152.0,0.00023329,3]
[340564583,1729487437890,-421.36807936,0.00023596,2]
[340564584,1729487437903,-632.517,0.00023615,4]
[340564585,1729487437912,-6891.4897,0.00023654,2]
[340564586,1729487437921,-150.0,0.0002373,2]
[340564587,1729487437930,-150.0,0.00023741,2]
[340564588,1729487437940,-300.0,0.00023744,2]
[340564589,1729487437949,-150.0,0.00023748,2]
[340564590,1729487437959,-150.0,0.00023754,2]
[340564591,1729487437968,-2356.01749713,0.0002376,2]
[340564592,1729487437978,-150.0,0.00023762,2]
[340564593,1729487437987,-150.0,0.00023763,2]
[340564594,1729487437996,-150.0,0.00023766,2]
[340564595,1729487438005,-150.0,0.00023766,2]
[340564596,1729487438014,-150.0,0.00023767,2]
[340564597,1729487438023,-150.0,0.00023768,2]
[340564598,1729487438032,-300.0,0.00023771,2]
[340564599,1729487438044,-150.0,0.00023772,2]
[340564600,1729487438053,-150.0,0.00023776,2]
[340564601,1729487438063,-150.0,0.00023778,2]
[340564602,1729487438071,-150.0,0.00023782,2]
[340564603,1729487438081,-1000.0,0.0002379,2]
[340564604,1729487438090,-2500.0,0.0002379,2]
[340564605,1729487438099,-356.888125,0.000238,2]
[340564606,1729487438108,-1900.0,0.000238,8]
[340564607,1729487438118,-150.0,0.00023802,2]
[340564608,1729487438127,-150.0,0.00023802,2]
[340564609,1729487438136,-150.0,0.00023802,2]
[340564610,1729487438145,-150.0,0.00023813,2]
[340564611,1729487438154,-150.0,0.00023821,2]
[340564612,1729487438163,-235.28813822,0.00023826,2]
[340564613,1729487438172,-150.0,0.00023827,2]
[340564614,1729487438181,-150.0,0.0002383,2]
[340564615,1729487438191,-150.0,0.00023831,2]
[340564616,1729487438200,-150.0,0.00023839,2]
[340564617,1729487438209,-150.0,0.00023839,2]
[340564618,1729487438218,-150.0,0.0002384,2]
[340564619,1729487438227,-150.0,0.0002384,2]
[340564620,1729487438237,-150.0,0.00023848,2]
[340564621,1729487438246,-150.0,0.00023858,2]
[340564622,1729487438256,-151.0,0.0002388,7]
[340564623,1729487438265,-150.0,0.00023882,2]
[340564624,1729487438274,-13375.88331505,0.0002389,4]
[340564625,1729487440412,-14243.11060739,0.0002389,4]
[340564626,1729487440471,-569.71417719,0.0002389,4]
[340564627,1729487440482,-137.85881427,0.0002389,4]
[340564628,1729487440492,-125.91526993,0.0002389,2]
[340564629,1729487440503,-223.10753007,0.0002389,2]
[340564630,1729487440512,-150.0,0.00023892,2]
[340564631,1729487440521,-150.0,0.00023895,2]
[340564632,1729487440530,-93.66747093,0.00023899,2]
[340564633,1729487440541,-56.33252907,0.00023899,2]
[340564634,1729487440550,-314.1945482,0.000239,2]
[340564635,1729487440565,-1483.51766408,0.000239,2]
[340564636,1729487440576,-7396.519,0.000239,2]
[340564637,1729487440616,-1521.92557944,0.000239,2]
[340564638,1729487440627,-2161.93590095,0.000239,2]
[340564639,1729487440638,-9608.95230733,0.000239,2]
[340564640,1729487440647,-435.9241,0.000239,2]
[340564641,1729487440656,-180.69029476,0.000239,2]
[340564642,1729487440701,-319.30970524,0.000239,2]
[340564643,1729487440710,-1186.86810619,0.000239,2]
[340564644,1729487440757,-1383.2692858,0.000239,2]
[340564659,1729487442651,-500.0,0.00023899,2]
[340564660,1729487442661,-500.0,0.00023899,2]
[340564661,1729487442671,-491.45074352,0.00023899,2]
[340564662,1729487442680,-69536.80324935,0.000239,2]
[340564663,1729487442692,-7459.66504663,0.000239,2]
[340564664,1729487442703,-11414.3335058,0.000239,2]
[340564665,1729487442715,-674.08041818,0.000239,2]
[340564666,1729487442726,-370.02505415,0.000239,2]
[340564667,1729487442738,-866.38933948,0.000239,2]
[340564668,1729487442749,-643.71140223,0.000239,2]
[340564669,1729487442931,-754.32475265,0.000239,2]
[340564670,1729487442944,-293.75433028,0.000239,2]
[340564671,1729487442989,-1123.98748595,0.000239,2]
[340564672,1729487443000,-408.00762641,0.000239,2]
[340564673,1729487443012,-3884.7803969,0.000239,2]
[340564674,1729487443021,-2050.7108,0.000239,2]
[340564675,1729487443031,-7962.82003142,0.000239,2]
[340564676,1729487443043,-7040.65125959,0.000239,2]
[340564687,1729487445572,-4417.52516995,0.000239,2]
[340564688,1729487445585,-6722.28973904,0.000239,2]
[340564689,1729487445595,-2253.7719,0.000239,2]
[340564690,1729487445605,-1000.0,0.000239,2]
[340564691,1729487445615,-424.94518729,0.000239,2]
[340564692,1729487445627,-6208.68711271,0.000239,2]
[340564693,1729487445637,-3900.0,0.000239,8]
[340564694,1729487445647,-150.0,0.00023903,2]
[340564695,1729487445657,-150.0,0.00023909,2]
[340564696,1729487445666,-150.0,0.0002391,2]
[340564697,1729487445676,-158.532182,0.00023912,3]
[340564698,1729487445686,-150.0,0.00023912,2]
[340564699,1729487445696,-150.0,0.00023916,2]
[340564700,1729487445706,-150.0,0.00023926,2]
[340564701,1729487445715,-150.0,0.0002393,2]
[340564702,1729487445725,-150.0,0.00023931,2]
[340564703,1729487445735,-150.0,0.00023938,2]
[340564704,1729487445744,-150.0,0.00023939,2]
[340564705,1729487445754,-150.0,0.0002394,2]
[340564706,1729487445764,-150.0,0.00023945,2]
[340564707,1729487445774,-150.0,0.0002395,2]
[340564708,1729487445783,-150.0,0.00023952,2]
[340564709,1729487445793,-150.0,0.00023953,2]
[340564710,1729487445805,-150.0,0.00023956,2]
[340564711,1729487445814,-150.0,0.00023956,2]
[340564712,1729487445825,-150.0,0.00023961,2]
[340564713,1729487445834,-150.0,0.00023972,2]
[340564714,1729487445844,-1499.99,0.00023973,2]
[340564715,1729487445853,-248.80919868,0.00023973,2]
[340564716,1729487445863,-150.0,0.00023975,2]
[340564717,1729487445872,-2598.76014745,0.0002398,4]
[340564718,1729487445888,-1269.51983804,0.0002398,4]
[340564719,1729487445902,-511.83364499,0.0002398,4]
[340564720,1729487445914,-1546.58900404,0.0002398,4]
[340564721,1729487445925,-267.72699047,0.0002398,4]
[340564722,1729487445936,-581.02513369,0.0002398,4]
[340564723,1729487445948,-1417.56443875,0.0002398,4]